[Event "Early-Titled-Tuesday-Blitz-January-23-2024"]
[Site "Chess.com"]
[Date "2024.01.23"]
[Round "1"]
[White "ValentunHulka"]
[Black "ilushka"]
[Result "1-0"]
[WhiteElo "2809"]
[BlackElo "2446"]
[TimeControl "180+1"]
[EndTime "8:05:43 PST"]
[Termination "ValentunHulka won by resignation"]

1. d4 {[%clk 0:03:00.9]} 1... e6 {[%clk 0:03:00.5]} 2. Nf3 {[%clk 0:03:00.7]}
2... Nf6 {[%clk 0:03:00.4]} 3. c4 {[%clk 0:03:01.2]} 3... Bb4+ {[%clk
0:02:59.8]} 4. Nbd2 {[%clk 0:03:01.2]} 4... O-O {[%clk 0:02:59.6]} 5. a3 {[%clk
0:03:01.5]} 5... Be7 {[%clk 0:02:59.8]} 6. e4 {[%clk 0:03:01.7]} 6... d6 {[%clk
0:03:00.4]} 7. Be2 {[%clk 0:03:02]} 7... Nbd7 {[%clk 0:02:59.8]} 8. O-O {[%clk
0:03:02.6]} 8... e5 {[%clk 0:03:00]} 9. b4 {[%clk 0:03:01.9]} 9... a5 {[%clk
0:02:59.2]} 10. Bb2 {[%clk 0:03:01.7]} 10... exd4 {[%clk 0:02:55.1]} 11. Nxd4
{[%clk 0:03:02]} 11... Re8 {[%clk 0:02:48.9]} 12. Qc2 {[%clk 0:03:01.7]} 12...
Ne5 {[%clk 0:02:44.4]} 13. h3 {[%clk 0:03:00]} 13... Nc6 {[%clk 0:02:43.5]} 14.
Nxc6 {[%clk 0:02:49.3]} 14... bxc6 {[%clk 0:02:44.4]} 15. Bc3 {[%clk 0:02:47.6]}
15... axb4 {[%clk 0:02:42.4]} 16. axb4 {[%clk 0:02:47.7]} 16... Rxa1 {[%clk
0:02:41.9]} 17. Rxa1 {[%clk 0:02:48.6]} 17... Bd7 {[%clk 0:02:33.4]} 18. Qb2
{[%clk 0:02:45]} 18... Bf8 {[%clk 0:02:22.9]} 19. Bd3 {[%clk 0:02:27.7]} 19...
Nh5 {[%clk 0:02:21.7]} 20. Re1 {[%clk 0:02:14.4]} 20... Nf4 {[%clk 0:02:20.6]}
21. Bf1 {[%clk 0:02:13.9]} 21... Qg5 {[%clk 0:02:12.4]} 22. Kh2 {[%clk
0:02:12.7]} 22... Ne6 {[%clk 0:01:28]} 23. Nf3 {[%clk 0:02:07.2]} 23... Qf4+
{[%clk 0:01:27.7]} 24. Kh1 {[%clk 0:02:07.9]} 24... Ng5 {[%clk 0:01:23]} 25. Bd2
{[%clk 0:02:07]} 25... Qf6 {[%clk 0:01:03.5]} 26. e5 {[%clk 0:02:07.1]} 26...
Nxf3 {[%clk 0:00:42.6]} 27. exf6 {[%clk 0:02:03.4]} 27... Nxe1 {[%clk
0:00:42.7]} 28. Qb1 {[%clk 0:01:42.1]} 28... Nf3 {[%clk 0:00:34.1]} 29. gxf3
{[%clk 0:01:42.1]} 29... gxf6 {[%clk 0:00:34.5]} 30. Be3 {[%clk 0:01:41.2]}
30... Be6 {[%clk 0:00:31.6]} 31. Bd3 {[%clk 0:01:41.6]} 31... h6 {[%clk
0:00:30.5]} 32. Qc1 {[%clk 0:01:36.3]} 32... Bxh3 {[%clk 0:00:22.8]} 33. Bxh6
{[%clk 0:01:34]} 33... Be7 {[%clk 0:00:21.1]} 34. Qg1+ {[%clk 0:01:32.4]} 1-0

[Event "Early-Titled-Tuesday-Blitz-January-23-2024"]
[Site "Chess.com"]
[Date "2024.01.23"]
[Round "1"]
[White "mbojan"]
[Black "SARGISMV"]
[Result "1-0"]
[WhiteElo "2887"]
[BlackElo "2487"]
[TimeControl "180+1"]
[EndTime "8:05:44 PST"]
[Termination "mbojan won by resignation"]

1. a3 {[%clk 0:03:00.9]} 1... Nf6 {[%clk 0:02:56.6]} 2. h3 {[%clk 0:03:00.5]}
2... c5 {[%clk 0:02:55.7]} 3. e3 {[%clk 0:02:59.4]} 3... d5 {[%clk 0:02:51.4]}
4. d4 {[%clk 0:02:59.7]} 4... cxd4 {[%clk 0:02:45.4]} 5. exd4 {[%clk 0:03:00.6]}
5... Bf5 {[%clk 0:02:45.5]} 6. Bd3 {[%clk 0:02:52.5]} 6... Bxd3 {[%clk
0:02:44.7]} 7. Qxd3 {[%clk 0:02:53.4]} 7... Nc6 {[%clk 0:02:43.6]} 8. Nf3 {[%clk
0:02:53]} 8... e6 {[%clk 0:02:43]} 9. Bf4 {[%clk 0:02:53.2]} 9... Bd6 {[%clk
0:02:40.4]} 10. Bxd6 {[%clk 0:02:53.3]} 10... Qxd6 {[%clk 0:02:40.1]} 11. Nbd2
{[%clk 0:02:53.6]} 11... O-O {[%clk 0:02:39.4]} 12. O-O {[%clk 0:02:54.1]} 12...
Rac8 {[%clk 0:02:33.1]} 13. Rfe1 {[%clk 0:02:53.7]} 13... Nd7 {[%clk 0:02:21.6]}
14. c3 {[%clk 0:02:53.5]} 14... a6 {[%clk 0:02:20.3]} 15. g3 {[%clk 0:02:48.5]}
15... h6 {[%clk 0:02:16.8]} 16. Kg2 {[%clk 0:02:48.5]} 16... b5 {[%clk
0:02:12.6]} 17. h4 {[%clk 0:02:47.8]} 17... Nb6 {[%clk 0:02:11.6]} 18. b4 {[%clk
0:02:42.7]} 18... Nc4 {[%clk 0:01:59.4]} 19. Nxc4 {[%clk 0:02:31.8]} 19... dxc4
{[%clk 0:01:46]} 20. Qe4 {[%clk 0:02:31.4]} 20... a5 {[%clk 0:01:41.3]} 21. Reb1
{[%clk 0:02:23.4]} 21... a4 {[%clk 0:01:34]} 22. Re1 {[%clk 0:02:09.3]} 22...
Rfd8 {[%clk 0:01:29]} 23. Ne5 {[%clk 0:02:08.1]} 23... Nxe5 {[%clk 0:01:25.4]}
24. Qxe5 {[%clk 0:02:09]} 24... Qxe5 {[%clk 0:01:20.9]} 25. Rxe5 {[%clk
0:02:09.9]} 25... Rd5 {[%clk 0:01:20]} 26. Rae1 {[%clk 0:02:09.8]} 26... Rcd8
{[%clk 0:01:19.3]} 27. h5 {[%clk 0:02:06.7]} 27... Rxe5 {[%clk 0:01:02.4]} 28.
Rxe5 {[%clk 0:02:07.6]} 28... Rd5 {[%clk 0:01:02.3]} 29. Kf3 {[%clk 0:02:08.1]}
29... Kf8 {[%clk 0:00:41.7]} 30. Ke4 {[%clk 0:02:07.3]} 30... f5+ {[%clk
0:00:34.1]} 31. Kf4 {[%clk 0:02:06.9]} 31... Rxe5 {[%clk 0:00:27.9]} 32. Kxe5
{[%clk 0:02:07.7]} 32... Ke7 {[%clk 0:00:26.6]} 33. f4 {[%clk 0:01:54.6]} 33...
Kf7 {[%clk 0:00:15.8]} 34. d5 {[%clk 0:01:55.1]} 34... exd5 {[%clk 0:00:15.4]}
35. Kxd5 {[%clk 0:01:56]} 35... g5 {[%clk 0:00:15.9]} 36. hxg6+ {[%clk
0:01:56.2]} 36... Kxg6 {[%clk 0:00:15.5]} 37. Kc5 {[%clk 0:01:52.1]} 37... Kh5
{[%clk 0:00:15.9]} 38. Kxb5 {[%clk 0:01:52.7]} 38... Kg4 {[%clk 0:00:16.6]} 39.
Kxc4 {[%clk 0:01:50.3]} 39... Kxg3 {[%clk 0:00:16.7]} 40. b5 {[%clk 0:01:51]}
40... h5 {[%clk 0:00:17.6]} 41. b6 {[%clk 0:01:51.5]} 41... h4 {[%clk
0:00:18.5]} 42. b7 {[%clk 0:01:52.4]} 42... h3 {[%clk 0:00:19.4]} 43. b8=Q
{[%clk 0:01:53]} 43... h2 {[%clk 0:00:20.3]} 44. Qb7 {[%clk 0:01:52.4]} 1-0

[Event "Early-Titled-Tuesday-Blitz-January-23-2024"]
[Site "Chess.com"]
[Date "2024.01.23"]
[Round "1"]
[White "Alexchess1984"]
[Black "GMJustin"]
[Result "1-0"]
[WhiteElo "2654"]
[BlackElo "2343"]
[TimeControl "180+1"]
[EndTime "8:05:45 PST"]
[Termination "Alexchess1984 won on time"]

1. e4 {[%clk 0:03:00.9]} 1... d6 {[%clk 0:02:44.8]} 2. d4 {[%clk 0:02:59.7]}
2... g6 {[%clk 0:02:44.8]} 3. Nf3 {[%clk 0:02:57.8]} 3... Bg7 {[%clk 0:02:44.3]}
4. h3 {[%clk 0:02:57.2]} 4... Nf6 {[%clk 0:02:41.3]} 5. Bd3 {[%clk 0:02:56.4]}
5... O-O {[%clk 0:02:39.6]} 6. O-O {[%clk 0:02:54.6]} 6... c5 {[%clk 0:02:37.7]}
7. c3 {[%clk 0:02:51.3]} 7... Nc6 {[%clk 0:02:35.9]} 8. d5 {[%clk 0:02:50.6]}
8... Ne5 {[%clk 0:02:33.4]} 9. Nxe5 {[%clk 0:02:50.1]} 9... dxe5 {[%clk
0:02:34.3]} 10. c4 {[%clk 0:02:50.1]} 10... Ne8 {[%clk 0:02:29.5]} 11. Nc3
{[%clk 0:02:49.9]} 11... Nd6 {[%clk 0:02:28.6]} 12. a3 {[%clk 0:02:44.8]} 12...
Bd7 {[%clk 0:02:23.8]} 13. b4 {[%clk 0:02:43.9]} 13... Rc8 {[%clk 0:02:06.2]}
14. bxc5 {[%clk 0:02:41.1]} 14... Rxc5 {[%clk 0:02:06.3]} 15. Be3 {[%clk
0:02:41.3]} 15... Rxc4 {[%clk 0:01:59]} 16. Bxc4 {[%clk 0:02:40.4]} 16... Nxc4
{[%clk 0:01:59.9]} 17. Qd3 {[%clk 0:02:35.9]} 17... Nxe3 {[%clk 0:01:52.7]} 18.
Qxe3 {[%clk 0:02:34.9]} 18... Qa5 {[%clk 0:01:52.5]} 19. Rfc1 {[%clk 0:02:31.6]}
19... f5 {[%clk 0:01:44.3]} 20. f3 {[%clk 0:02:24]} 20... f4 {[%clk 0:01:14.9]}
21. Qf2 {[%clk 0:02:17.4]} 21... g5 {[%clk 0:01:11.2]} 22. Ne2 {[%clk
0:02:12.6]} 22... h5 {[%clk 0:01:07.4]} 23. Qc5 {[%clk 0:02:07.9]} 23... Qa6
{[%clk 0:00:53.6]} 24. Nc3 {[%clk 0:02:02]} 24... Bf6 {[%clk 0:00:11.3]} 25. a4
{[%clk 0:01:46]} 25... g4 {[%clk 0:00:10.6]} 26. hxg4 {[%clk 0:01:45.7]} 26...
hxg4 {[%clk 0:00:10.9]} 27. fxg4 {[%clk 0:01:45.6]} 27... Bxg4 {[%clk
0:00:09.5]} 28. Nb5 {[%clk 0:01:43.8]} 28... f3 {[%clk 0:00:03.4]} 29. gxf3
{[%clk 0:01:39]} 29... Bxf3 {[%clk 0:00:03.3]} 30. Rc3 {[%clk 0:01:39.2]} 30...
Bg4 {[%clk 0:00:01.5]} 31. Rg3 {[%clk 0:01:38.3]} 1-0

[Event "Early-Titled-Tuesday-Blitz-January-23-2024"]
[Site "Chess.com"]
[Date "2024.01.23"]
[Round "1"]
[White "Practical-Play"]
[Black "MetiForce"]
[Result "0-1"]
[WhiteElo "2484"]
[BlackElo "2873"]
[TimeControl "180+1"]
[EndTime "8:05:46 PST"]
[Termination "MetiForce won by checkmate"]

1. e4 {[%clk 0:03:00.9]} 1... c5 {[%clk 0:02:55.3]} 2. Nc3 {[%clk 0:03:00.2]}
2... Nc6 {[%clk 0:02:55.1]} 3. Nf3 {[%clk 0:02:59.8]} 3... d6 {[%clk 0:02:54.1]}
4. d4 {[%clk 0:02:59.6]} 4... cxd4 {[%clk 0:02:55]} 5. Nxd4 {[%clk 0:03:00.1]}
5... Nf6 {[%clk 0:02:55.8]} 6. Bg5 {[%clk 0:02:59.9]} 6... e6 {[%clk 0:02:52.5]}
7. Qd2 {[%clk 0:02:58.9]} 7... a6 {[%clk 0:02:52.4]} 8. O-O-O {[%clk 0:02:59]}
8... Bd7 {[%clk 0:02:52.7]} 9. h4 {[%clk 0:02:55.5]} 9... Be7 {[%clk 0:02:47.2]}
10. f3 {[%clk 0:02:50.3]} 10... Nxd4 {[%clk 0:02:40.5]} 11. Qxd4 {[%clk
0:02:49.3]} 11... Qc7 {[%clk 0:02:41.1]} 12. Qc4 {[%clk 0:02:20.8]} 12... Qxc4
{[%clk 0:02:39]} 13. Bxc4 {[%clk 0:02:21.7]} 13... b5 {[%clk 0:02:39.7]} 14. Bb3
{[%clk 0:02:18.2]} 14... Bc6 {[%clk 0:02:27]} 15. Bf4 {[%clk 0:01:58.6]} 15...
O-O-O {[%clk 0:02:26.7]} 16. a4 {[%clk 0:01:56.1]} 16... Nh5 {[%clk 0:02:10.9]}
17. Be3 {[%clk 0:01:53.1]} 17... Kb7 {[%clk 0:02:11]} 18. g4 {[%clk 0:01:45.9]}
18... Nf6 {[%clk 0:02:11.2]} 19. h5 {[%clk 0:01:31.2]} 19... Nd7 {[%clk
0:02:08.1]} 20. Nd5 {[%clk 0:01:28.3]} 20... Bxd5 {[%clk 0:01:24.4]} 21. exd5
{[%clk 0:01:25.4]} 21... e5 {[%clk 0:01:24.9]} 22. Kb1 {[%clk 0:01:07.8]} 22...
h6 {[%clk 0:01:23.9]} 23. axb5 {[%clk 0:00:56.2]} 23... axb5 {[%clk 0:01:24.8]}
24. c4 {[%clk 0:00:56.3]} 24... Bg5 {[%clk 0:01:25.2]} 25. Bf2 {[%clk
0:00:46.8]} 25... Ra8 {[%clk 0:01:04.5]} 26. cxb5 {[%clk 0:00:39.7]} 26... Rhc8
{[%clk 0:01:05]} 27. Rd3 {[%clk 0:00:35.9]} 27... Ra5 {[%clk 0:01:04.9]} 28. Be1
{[%clk 0:00:33.8]} 28... Rc1# {[%clk 0:01:00.9]} 0-1

[Event "Early-Titled-Tuesday-Blitz-January-23-2024"]
[Site "Chess.com"]
[Date "2024.01.23"]
[Round "1"]
[White "Jenia84"]
[Black "aghasiyevkamal"]
[Result "0-1"]
[WhiteElo "2324"]
[BlackElo "2641"]
[TimeControl "180+1"]
[EndTime "8:05:46 PST"]
[Termination "aghasiyevkamal won by resignation"]

1. Nf3 {[%clk 0:02:19.5]} 1... d5 {[%clk 0:02:59.1]} 2. g3 {[%clk 0:02:18.4]}
2... Nf6 {[%clk 0:02:57.5]} 3. Bg2 {[%clk 0:02:19.3]} 3... g6 {[%clk 0:02:55.3]}
4. O-O {[%clk 0:02:19]} 4... Bg7 {[%clk 0:02:55.9]} 5. c3 {[%clk 0:02:18.9]}
5... O-O {[%clk 0:02:56.5]} 6. d3 {[%clk 0:02:19]} 6... c5 {[%clk 0:02:56.3]} 7.
Nbd2 {[%clk 0:02:18.3]} 7... Nc6 {[%clk 0:02:56.6]} 8. e4 {[%clk 0:02:17.1]}
8... e6 {[%clk 0:02:56.9]} 9. e5 {[%clk 0:02:13.4]} 9... Nd7 {[%clk 0:02:56.7]}
10. d4 {[%clk 0:02:13.6]} 10... b6 {[%clk 0:02:57.1]} 11. Nb3 {[%clk 0:02:01]}
11... Ba6 {[%clk 0:02:56.8]} 12. Re1 {[%clk 0:02:00.3]} 12... cxd4 {[%clk
0:02:55.9]} 13. cxd4 {[%clk 0:01:59.5]} 13... Rc8 {[%clk 0:02:55.2]} 14. Bg5
{[%clk 0:01:58.9]} 14... Qc7 {[%clk 0:02:51]} 15. Qd2 {[%clk 0:01:56.8]} 15...
Bc4 {[%clk 0:02:40.9]} 16. Rac1 {[%clk 0:01:54.3]} 16... Qb7 {[%clk 0:02:33.9]}
17. Bh6 {[%clk 0:01:51.9]} 17... Bxb3 {[%clk 0:02:31.5]} 18. axb3 {[%clk
0:01:51.2]} 18... Na5 {[%clk 0:02:31.7]} 19. Bxg7 {[%clk 0:01:46.5]} 19... Kxg7
{[%clk 0:02:30.3]} 20. Rxc8 {[%clk 0:01:38]} 20... Rxc8 {[%clk 0:02:29.6]} 21.
Qf4 {[%clk 0:01:36.7]} 21... Nxb3 {[%clk 0:02:23]} 22. Ng5 {[%clk 0:01:35.8]}
22... Nf8 {[%clk 0:02:10.1]} 23. h4 {[%clk 0:01:09.7]} 23... h5 {[%clk
0:01:49.5]} 24. Bf3 {[%clk 0:01:05.2]} 24... Qe7 {[%clk 0:01:47.2]} 25. g4
{[%clk 0:00:50.4]} 25... hxg4 {[%clk 0:01:39.8]} 26. Bxg4 {[%clk 0:00:45.3]}
26... Rc4 {[%clk 0:01:38.6]} 27. Rd1 {[%clk 0:00:36.7]} 27... Nh7 {[%clk
0:01:25.3]} 28. Rd3 {[%clk 0:00:36]} 28... Nc1 {[%clk 0:01:15.3]} 29. Rf3 {[%clk
0:00:25]} 29... Ne2+ {[%clk 0:01:13.2]} 0-1

[Event "Early-Titled-Tuesday-Blitz-January-23-2024"]
[Site "Chess.com"]
[Date "2024.01.23"]
[Round "1"]
[White "ClaudiaSof"]
[Black "only_strong_moves"]
[Result "0-1"]
[WhiteElo "2270"]
[BlackElo "2612"]
[TimeControl "180+1"]
[EndTime "8:05:46 PST"]
[Termination "only_strong_moves won by resignation"]

1. d4 {[%clk 0:03:00.9]} 1... Nf6 {[%clk 0:03:00]} 2. Bf4 {[%clk 0:02:59.4]}
2... e6 {[%clk 0:02:59.1]} 3. e3 {[%clk 0:02:57.7]} 3... c5 {[%clk 0:02:59.7]}
4. c3 {[%clk 0:02:57.2]} 4... Nc6 {[%clk 0:03:00.2]} 5. Nd2 {[%clk 0:02:57]}
5... d5 {[%clk 0:03:00.8]} 6. Ngf3 {[%clk 0:02:57]} 6... Nh5 {[%clk 0:03:01.3]}
7. Bg5 {[%clk 0:02:55.9]} 7... f6 {[%clk 0:03:01.6]} 8. Bh4 {[%clk 0:02:55.8]}
8... g6 {[%clk 0:03:02.2]} 9. Bd3 {[%clk 0:02:53.6]} 9... cxd4 {[%clk
0:03:02.5]} 10. cxd4 {[%clk 0:02:53]} 10... Ng7 {[%clk 0:03:00.7]} 11. O-O
{[%clk 0:02:48.6]} 11... Nf5 {[%clk 0:03:01]} 12. Bg3 {[%clk 0:02:31.5]} 12...
Nxg3 {[%clk 0:02:58.2]} 13. hxg3 {[%clk 0:02:31.3]} 13... Bg7 {[%clk 0:02:57.9]}
14. Rc1 {[%clk 0:02:28.3]} 14... O-O {[%clk 0:02:58]} 15. a3 {[%clk 0:02:27.7]}
15... Bd7 {[%clk 0:02:56.3]} 16. b4 {[%clk 0:02:27.2]} 16... a6 {[%clk
0:02:54.5]} 17. Qb3 {[%clk 0:02:24.8]} 17... Na7 {[%clk 0:02:54.1]} 18. Rc2
{[%clk 0:02:12]} 18... Rc8 {[%clk 0:02:54.3]} 19. Rfc1 {[%clk 0:02:10.4]} 19...
Qb6 {[%clk 0:02:53.4]} 20. a4 {[%clk 0:01:49.9]} 20... a5 {[%clk 0:02:50.4]} 21.
b5 {[%clk 0:01:49.1]} 21... Qd6 {[%clk 0:02:48.1]} 22. Rc5 {[%clk 0:01:44.9]}
22... b6 {[%clk 0:02:47.6]} 23. Rxc8 {[%clk 0:01:43.4]} 23... Rxc8 {[%clk
0:02:48.5]} 24. Rxc8+ {[%clk 0:01:42.5]} 24... Nxc8 {[%clk 0:02:49.4]} 25. Qc3
{[%clk 0:01:39.6]} 25... Ne7 {[%clk 0:02:43.5]} 26. e4 {[%clk 0:01:27.6]} 26...
h5 {[%clk 0:02:37]} 27. Bc2 {[%clk 0:01:15.3]} 27... g5 {[%clk 0:02:32.5]} 28.
Qd3 {[%clk 0:00:41.1]} 28... Be8 {[%clk 0:02:05.6]} 29. e5 {[%clk 0:00:33.1]}
29... fxe5 {[%clk 0:02:05.8]} 30. dxe5 {[%clk 0:00:20.6]} 30... Qc7 {[%clk
0:01:45.8]} 31. Qh7+ {[%clk 0:00:14.8]} 31... Kf8 {[%clk 0:01:45.9]} 32. Nxg5
{[%clk 0:00:11.8]} 32... Qxe5 {[%clk 0:01:46.4]} 33. f4 {[%clk 0:00:04.1]} 33...
Qe3+ {[%clk 0:01:46.7]} 0-1

[Event "Early-Titled-Tuesday-Blitz-January-23-2024"]
[Site "Chess.com"]
[Date "2024.01.23"]
[Round "1"]
[White "ChessboArt"]
[Black "KChor05"]
[Result "0-1"]
[WhiteElo "2172"]
[BlackElo "2572"]
[TimeControl "180+1"]
[EndTime "8:05:51 PST"]
[Termination "KChor05 won by resignation"]

1. Nf3 {[%clk 0:03:00.9]} 1... Nf6 {[%clk 0:02:57.8]} 2. g3 {[%clk 0:03:00.6]}
2... g6 {[%clk 0:02:57]} 3. Bg2 {[%clk 0:03:00.8]} 3... Bg7 {[%clk 0:02:57.9]}
4. c4 {[%clk 0:03:00.8]} 4... O-O {[%clk 0:02:58.8]} 5. Nc3 {[%clk 0:03:01]}
5... d6 {[%clk 0:02:59.1]} 6. O-O {[%clk 0:03:00.6]} 6... Nc6 {[%clk 0:02:59.8]}
7. Rb1 {[%clk 0:03:00.2]} 7... a5 {[%clk 0:02:59.1]} 8. a3 {[%clk 0:02:59.7]}
8... Bf5 {[%clk 0:02:51]} 9. d3 {[%clk 0:02:59.7]} 9... e5 {[%clk 0:02:50.7]}
10. b4 {[%clk 0:02:56.5]} 10... axb4 {[%clk 0:02:50.1]} 11. axb4 {[%clk
0:02:57.4]} 11... e4 {[%clk 0:02:50.5]} 12. Nh4 {[%clk 0:02:49.4]} 12... exd3
{[%clk 0:02:43.6]} 13. Nxf5 {[%clk 0:02:48]} 13... dxe2 {[%clk 0:02:43.4]} 14.
Qxe2 {[%clk 0:02:28.6]} 14... gxf5 {[%clk 0:02:42.5]} 15. Bg5 {[%clk 0:02:25.7]}
15... h6 {[%clk 0:02:25.3]} 16. Be3 {[%clk 0:02:11.7]} 16... Re8 {[%clk
0:02:21.3]} 17. Qc2 {[%clk 0:01:49.3]} 17... Qd7 {[%clk 0:02:17.3]} 18. Nd5
{[%clk 0:01:40.8]} 18... Ng4 {[%clk 0:02:12.7]} 19. Rfe1 {[%clk 0:01:08]} 19...
Nd4 {[%clk 0:02:02.7]} 20. Qd2 {[%clk 0:00:50.4]} 20... Nxe3 {[%clk 0:01:54.5]}
21. Rxe3 {[%clk 0:00:51.3]} 21... Rxe3 {[%clk 0:01:45.6]} 22. Qxe3 {[%clk
0:00:46.3]} 22... Re8 {[%clk 0:01:42]} 23. Qd3 {[%clk 0:00:20]} 23... Ne2+
{[%clk 0:01:32.5]} 24. Kh1 {[%clk 0:00:19.8]} 24... c6 {[%clk 0:01:33.4]} 25.
Ne3 {[%clk 0:00:18.6]} 25... Nc3 {[%clk 0:01:11.5]} 26. Rb3 {[%clk 0:00:17]}
26... Ne4 {[%clk 0:01:11.4]} 27. b5 {[%clk 0:00:14.6]} 27... Nxf2+ {[%clk
0:01:10.8]} 28. Kg1 {[%clk 0:00:14.7]} 28... Nxd3 {[%clk 0:01:11.7]} 0-1

[Event "Early-Titled-Tuesday-Blitz-January-23-2024"]
[Site "Chess.com"]
[Date "2024.01.23"]
[Round "1"]
[White "AlexandraSamaganova"]
[Black "Ginger_GM"]
[Result "0-1"]
[WhiteElo "2371"]
[BlackElo "2682"]
[TimeControl "180+1"]
[EndTime "8:05:55 PST"]
[Termination "Ginger_GM won by resignation"]

1. c4 {[%clk 0:03:00.9]} 1... f5 {[%clk 0:02:56.9]} 2. Nc3 {[%clk 0:03:00.1]}
2... Nf6 {[%clk 0:02:56.2]} 3. g3 {[%clk 0:02:58.2]} 3... d6 {[%clk 0:02:55.1]}
4. Bg2 {[%clk 0:02:58]} 4... e5 {[%clk 0:02:54.7]} 5. d3 {[%clk 0:02:57]} 5...
Be7 {[%clk 0:02:54.6]} 6. e4 {[%clk 0:02:51.9]} 6... O-O {[%clk 0:02:53.7]} 7.
Nge2 {[%clk 0:02:50.6]} 7... c6 {[%clk 0:02:51.2]} 8. O-O {[%clk 0:02:46.9]}
8... Qe8 {[%clk 0:02:49.8]} 9. d4 {[%clk 0:02:20.2]} 9... fxe4 {[%clk
0:02:29.6]} 10. Nxe4 {[%clk 0:02:07.6]} 10... Nxe4 {[%clk 0:02:27.7]} 11. Bxe4
{[%clk 0:02:07.4]} 11... Bh3 {[%clk 0:02:24]} 12. Bg2 {[%clk 0:02:07]} 12... Qh5
{[%clk 0:02:10.7]} 13. f4 {[%clk 0:01:43.8]} 13... Bg4 {[%clk 0:01:42.3]} 14.
Rf2 {[%clk 0:01:34.4]} 14... exd4 {[%clk 0:01:40.2]} 15. Qxd4 {[%clk 0:00:57.1]}
15... Na6 {[%clk 0:01:22.3]} 16. Qd2 {[%clk 0:00:14.4]} 16... d5 {[%clk
0:01:14]} 17. b3 {[%clk 0:00:05.1]} 17... Bb4 {[%clk 0:01:06.8]} 18. Qd3 {[%clk
0:00:04.4]} 18... Bc5 {[%clk 0:01:06.2]} 19. Qc3 {[%clk 0:00:04.3]} 19... Bxe2
{[%clk 0:01:00]} 0-1

[Event "Early-Titled-Tuesday-Blitz-January-23-2024"]
[Site "Chess.com"]
[Date "2024.01.23"]
[Round "1"]
[White "SAInt_666"]
[Black "Nekoo04"]
[Result "1-0"]
[WhiteElo "2651"]
[BlackElo "2342"]
[TimeControl "180+1"]
[EndTime "8:05:55 PST"]
[Termination "SAInt_666 won by resignation"]

1. e4 {[%clk 0:02:54.7]} 1... c5 {[%clk 0:02:59.8]} 2. Nf3 {[%clk 0:02:53.4]}
2... d6 {[%clk 0:03:00.2]} 3. Bb5+ {[%clk 0:02:52.2]} 3... Bd7 {[%clk
0:03:00.2]} 4. Bxd7+ {[%clk 0:02:52.4]} 4... Nxd7 {[%clk 0:03:01.1]} 5. c3
{[%clk 0:02:52.3]} 5... Ngf6 {[%clk 0:03:00.2]} 6. Qe2 {[%clk 0:02:52.9]} 6...
e6 {[%clk 0:02:58.5]} 7. d4 {[%clk 0:02:52.9]} 7... Be7 {[%clk 0:02:45.5]} 8.
O-O {[%clk 0:02:52]} 8... O-O {[%clk 0:02:45]} 9. e5 {[%clk 0:02:46.4]} 9... Ne8
{[%clk 0:02:45]} 10. Rd1 {[%clk 0:02:34.9]} 10... Qc7 {[%clk 0:02:40.2]} 11. Na3
{[%clk 0:02:25.1]} 11... a6 {[%clk 0:02:37.5]} 12. Bf4 {[%clk 0:02:18.7]} 12...
cxd4 {[%clk 0:02:37.3]} 13. cxd4 {[%clk 0:02:18.9]} 13... dxe5 {[%clk
0:02:37.6]} 14. dxe5 {[%clk 0:02:19.4]} 14... Bxa3 {[%clk 0:02:30.7]} 15. bxa3
{[%clk 0:02:19.1]} 15... Nb6 {[%clk 0:02:30.6]} 16. Rac1 {[%clk 0:02:18]} 16...
Qe7 {[%clk 0:02:30.4]} 17. Be3 {[%clk 0:02:15.3]} 17... Na4 {[%clk 0:02:13.4]}
18. Rc4 {[%clk 0:01:33.6]} 18... b5 {[%clk 0:02:12.4]} 19. Rh4 {[%clk
0:01:22.3]} 19... Nc7 {[%clk 0:01:50.5]} 20. Bg5 {[%clk 0:01:13.8]} 20... Qc5
{[%clk 0:01:38]} 21. Rc1 {[%clk 0:01:12.9]} 21... Qb6 {[%clk 0:01:24]} 22. Qc2
{[%clk 0:01:10.3]} 22... h6 {[%clk 0:01:24]} 23. Bxh6 {[%clk 0:01:04.7]} 23...
gxh6 {[%clk 0:01:23.7]} 24. Ng5 {[%clk 0:00:55.2]} 24... f5 {[%clk 0:00:55]} 25.
exf6 {[%clk 0:00:55.1]} 25... Rxf6 {[%clk 0:00:55.2]} 26. Qh7+ {[%clk
0:00:55.7]} 26... Kf8 {[%clk 0:00:55.8]} 27. Qh8+ {[%clk 0:00:56.5]} 27... Ke7
{[%clk 0:00:54.4]} 28. Qg7+ {[%clk 0:00:57.1]} 28... Kd6 {[%clk 0:00:54.9]} 29.
Ne4+ {[%clk 0:00:54.6]} 29... Ke5 {[%clk 0:00:52.7]} 30. Qxf6+ {[%clk
0:00:53.9]} 30... Kd5 {[%clk 0:00:52.4]} 31. Rh5+ {[%clk 0:00:50]} 31... Kxe4
{[%clk 0:00:50.6]} 1-0